bitfinex-derivatives/quotes_SOLF0:USTF0_20251224
["timestamp","ask_amount","ask_price","bid_price","bid_amount"]
[1766562577671,19.28778628,121.79,121.73,17.49]
[1766562577873,19.28778628,121.79,121.75,0.05197308]
[1766562578459,17.98,121.79,121.75,0.05197308]
[1766562579265,19.28778628,121.81,121.75,17.54197308]
[1766562580068,98.36778628,121.82,121.75,17.54197308]
[1766562580264,116.34778628,121.82,121.75,17.54197308]
[1766562582475,19.28778628,121.82,121.75,17.54197308]
[1766562583173,17.98,121.82,121.75,17.54197308]
[1766562584075,1.30778628,121.83,121.75,17.54197308]
[1766562584282,17.98,121.85,121.78,18.9451962]
[1766562584674,19.28778628,121.85,121.78,18.9451962]
[1766562587880,1.30778628,121.83,121.78,18.9451962]
[1766562589081,19.28778628,121.83,121.78,0.0551962]
[1766562589584,1.30778628,121.81,121.78,0.0551962]
[1766562593391,19.28778628,121.81,121.74,18.89]
[1766562593690,1.30778628,121.79,121.74,18.89]
[1766562594283,0.0551962,121.78,121.75,0.06229816]
[1766562601481,19.22778628,121.76,121.68,17.89]
[1766562601682,1.30778628,121.74,121.68,17.89]
[1766562601884,19.16778628,121.74,121.68,17.89]
[1766562602491,0.05413598,121.72,121.7,0.05985206]
[1766562606390,1.36192226,121.72,121.68,17.89]
[1766562607502,97.02,121.79,121.69,17.94216909]
[1766562607691,97.02,121.79,121.65,97.04]
[1766562607692,17.92,121.82,121.73,17.89]
[1766562607888,1.30778628,121.83,121.75,17.89]
[1766562608196,17.92,121.84,121.76,17.89]
[1766562608599,17.92,121.84,121.79,0.05530653]
[1766562609400,19.27778628,121.83,121.79,0.05530653]
[1766562609602,0.05505966,121.82,121.79,0.05530653]
[1766562610602,18.02505966,121.82,121.79,0.05530653]
[1766562611692,18.02505966,121.82,121.77,17.89]
[1766562611901,18.02505966,121.82,121.75,17.89]
[1766562612090,19.27778628,121.81,121.75,17.89]
[1766562612293,17.97,121.81,121.75,17.89]
[1766562612800,0.05624094,121.79,121.77,0.05959279]
[1766562623513,0.05624094,121.79,121.75,17.89]
[1766562624407,0.05624094,121.79,121.76,0.06095609]
[1766562628911,18.03624094,121.79,121.71,17.89]
[1766562629106,19.95987207,121.78,121.71,17.89]
[1766562629504,17.92,121.78,121.71,17.89]
[1766562629914,0.05975462,121.76,121.73,0.0604419]
[1766562631417,0.05975462,121.76,121.73,18.5604419]
[1766562633223,17.96975462,121.76,121.73,0.0004419]
[1766562637722,17.86,121.75,121.68,18.5]
[1766562638814,0.05749621,121.73,121.7,0.0524762]
[1766562646419,17.94749621,121.73,121.7,0.0524762]
[1766562654620,17.84,121.72,121.64,28.39589512]
[1766562654827,17.84,121.7,121.62,18.24]
[1766562655031,19.87987207,121.7,121.62,18.24]
[1766562655640,0.05751305,121.67,121.65,0.05590245]
[1766562656935,0.05751305,121.67,121.62,18.24]
[1766562656936,17.84751305,121.67,121.62,18.24]
[1766562657835,17.84751305,121.67,121.63,0.05207896]
[1766562661342,17.84751305,121.67,121.6,115.3]
[1766562661745,17.84751305,121.67,121.56,19.26]
[1766562661746,17.81,121.65,121.56,19.26]
[1766562662046,17.81,121.63,121.56,19.26]
[1766562662342,0.05251622,121.61,121.58,0.05830584]
[1766562666951,17.81,121.65,121.58,19.31830584]
[1766562667152,17.81,121.65,121.58,19.26]
[1766562667542,17.81,121.65,121.59,19.26]
[1766562667741,0.06217858,121.63,121.61,0.05564465]
[1766562670838,116.99987207,121.67,121.61,19.31564465]
[1766562671041,114.96,121.67,121.61,19.31564465]
[1766562671446,17.86,121.66,121.61,19.31564465]
[1766562671852,0.06202396,121.65,121.61,19.31564465]
[1766562677767,17.93202396,121.65,121.61,0.05564465]
[1766562679452,0.06202396,121.65,121.61,19.31564465]
[1766562690177,17.93202396,121.65,121.61,0.05564465]
[1766562696785,17.93202396,121.65,121.61,17.64564465]
[1766562706398,17.93202396,121.65,121.61,0.05564465]
[1766562706594,18.99874384,121.64,121.61,0.05564465]
[1766562706794,18.99874384,121.64,121.59,18.29]
[1766562707800,18.99874384,121.64,121.6,0.05909232]
[1766562718709,17.69,121.64,121.6,0.05909232]
[1766562719607,17.69,121.64,121.6,18.34909232]
[1766562723311,17.69,121.64,121.6,0.05909232]
[1766562723811,19.18874384,121.63,121.6,0.05909232]
[1766562726013,17.88,121.63,121.6,0.05909232]
[1766562737315,17.94202396,121.65,121.6,19.12909232]
[1766562738117,17.94202396,121.65,121.6,0.05909232]
[1766562738620,19.18874384,121.64,121.6,0.05909232]
[1766562741923,17.88,121.64,121.6,0.05909232]
[1766562742721,17.88,121.64,121.57,7.4087]
[1766562742923,17.88,121.64,121.56,19.07]
[1766562743123,17.82,121.62,121.56,19.07]
[1766562743622,17.82,121.62,121.58,0.06289251]
[1766562743818,0.05828431,121.6,121.58,0.06289251]
[1766562748340,17.87828431,121.6,121.55,29.22589512]
[1766562749439,17.87828431,121.6,121.56,0.06260491]
[1766562750441,17.87828431,121.6,121.53,19.07]
[1766562751030,17.78,121.58,121.52,27.78589512]
[1766562751341,17.78,121.58,121.52,17.63]
[1766562751531,0.0605582,121.56,121.54,0.0531567]
[1766562760737,17.84,121.6,121.54,17.6831567]
[1766562761746,0.06066855,121.58,121.54,17.6831567]
[1766562763949,17.61,121.62,121.55,18.82]
[1766562765051,0.05761493,121.6,121.57,0.054331]
[1766562766054,122.195,121.64,121.57,18.874331]
[1766562766251,17.61,121.64,121.57,18.874331]
[1766562766757,17.61,121.64,121.58,18.82]
[1766562767146,0.05919455,121.62,121.6,0.06182639]
[1766562772160,17.61,121.64,121.6,0.06182639]
[1766562773160,0.05443803,121.63,121.6,0.06182639]
[1766562778761,17.61,121.66,121.6,18.88182639]
[1766562778960,17.61,121.68,121.6,18.88182639]
[1766562779266,17.61,121.68,121.6,18.82]
[1766562779963,0.05731812,121.65,121.63,0.05711606]
[1766562781369,17.94731812,121.65,121.59,26.4675]
[1766562781667,17.94731812,121.65,121.59,19.06]
[1766562782362,17.94731812,121.65,121.61,0.0615781]
[1766562790478,17.94731812,121.65,121.61,19.1215781]
[1766562791875,0.05731812,121.65,121.61,19.1215781]
[1766562795175,17.9,121.67,121.62,19.06]
[1766562796186,0.05953165,121.66,121.62,19.06]
[1766562796483,17.95953165,121.66,121.61,0.0615781]
[1766562800887,17.95953165,121.66,121.61,0.0015781]
[1766562801080,20.00573658,121.66,121.61,0.0015781]
[1766562802699,17.84,121.64,121.61,0.0015781]
[1766562803892,19.14941272,121.64,121.61,0.0015781]
[1766562808491,19.14941272,121.64,121.52,17.74]
[1766562808492,17.84,121.59,121.52,17.74]
[1766562808694,1.30941272,121.58,121.52,17.74]
[1766562809000,19.14941272,121.59,121.52,17.74]
[1766562809393,19.14941272,121.59,121.54,17.79368153]
[1766562809394,0.0031971,121.57,121.54,17.79368153]
[1766562816898,0.0031971,121.57,121.54,0.05368153]
[1766562820906,0.0031971,121.57,121.54,17.49368153]
[1766562832802,1.31260982,121.57,121.54,0.05368153]
[1766562836815,0.0031971,121.57,121.54,0.05368153]
[1766562837215,0.0031971,121.57,121.54,17.49368153]
[1766562853226,0.0031971,121.57,121.54,0.05368153]
[1766562853227,1.31260982,121.57,121.54,0.05368153]
[1766562853434,0.0031971,121.57,121.54,17.93368153]
[1766562866647,0.0031971,121.57,121.54,0.05368153]
[1766562870548,0.0031971,121.57,121.54,17.93368153]
[1766562872055,0.0031971,121.57,121.54,0.05368153]
[1766562874255,0.0031971,121.57,121.52,18.13]
[1766562875254,0.0031971,121.57,121.53,0.05656438]
[1766562875955,0.0031971,121.57,121.53,18.01656438]
[1766562893168,0.0031971,121.57,121.54,17.96]
[1766562902664,114.96,121.62,121.55,18.9]
[1766562902867,17.78,121.62,121.57,18.9]
[1766562903278,17.78,121.62,121.56,97.18]
[1766562903575,0.05201842,121.6,121.58,0.05862524]
[1766562904776,0.00201842,121.6,121.58,18.95862524]
[1766562906074,17.83,121.64,121.58,18.95862524]
[1766562906274,17.83,121.64,121.59,116.08]
[1766562907182,0.06094526,121.63,121.59,116.08]
[1766562909686,19.92851031,121.63,121.58,0.05862524]
[1766562913976,19.85756505,121.61,121.53,18.9]
[1766562914283,19.85756505,121.61,121.54,18.9]
[1766562914676,17.81,121.61,121.54,18.9]
[1766562915080,0.05811636,121.59,121.56,18.95939952]
[1766562915581,17.86811636,121.59,121.53,116.06]
[1766562915778,17.86811636,121.59,121.53,18.9]
[1766562916480,0.05811636,121.59,121.53,18.9]
[1766562916685,0.05811636,121.59,121.55,18.962498]
[1766562917679,17.74,121.63,121.56,18.9]
[1766562918684,0.06083832,121.61,121.58,0.05811807]
[1766562920676,0.06083832,121.61,121.58,18.95811807]
[1766562920878,114.96,121.65,121.58,18.95811807]
[1766562921992,0.06025006,121.63,121.58,18.95811807]
[1766562923894,17.91025006,121.63,121.58,0.05811807]
[1766562924094,17.91025006,121.63,121.58,18.95811807]
[1766562925296,0.06025006,121.63,121.58,18.95811807]
[1766562933193,17.87025006,121.63,121.58,18.95811807]
[1766562933995,17.87025006,121.63,121.58,0.05811807]
[1766562934492,19.1190799,121.62,121.58,0.05811807]
[1766562936495,19.0590799,121.6,121.54,114.82]
[1766562937496,0.06107652,121.58,121.56,0.06010325]
[1766562941198,19.12015642,121.58,121.54,97.16]
[1766562941607,19.12015642,121.58,121.52,17.66]
[1766562942205,19.12015642,121.58,121.54,0.06117012]
[1766562949115,17.81107652,121.58,121.54,0.06117012]
[1766562954326,0.06107652,121.58,121.54,17.72117012]
[1766562955226,17.74107652,121.58,121.54,0.06117012]
[1766562962519,17.74107652,121.58,121.54,19.23117012]
[1766562965325,17.74107652,121.58,121.54,0.00117012]
[1766562974037,17.61,121.56,121.54,0.00117012]
[1766562980942,17.61,121.56,121.51,19.17]
[1766562981943,0.05935846,121.55,121.52,0.06270728]
[1766562985940,0.05935846,121.55,121.52,19.23270728]
[1766562986347,17.59,121.58,121.52,19.23270728]
[1766562987239,0.05629147,121.56,121.52,19.23270728]
[1766562992251,7.4057,121.63,121.54,18.8]
[1766562992452,9.45370016,121.63,121.54,18.8]
[1766562992750,15.48954023,121.63,121.54,18.8]
[1766562993251,0.05498447,121.6,121.57,0.05670857]
[1766562994345,4.24498447,121.6,121.57,0.05670857]
[1766562996347,4.24498447,121.6,121.52,18.23]
[1766562996551,4.19,121.6,121.52,18.23]
[1766562997252,0.05968871,121.57,121.55,0.05378134]
[1766563000851,4.23,121.59,121.55,0.05378134]
[1766563001855,0.06157154,121.58,121.55,0.05378134]
[1766563003851,0.06157154,121.58,121.55,18.28378134]
[1766563007350,0.00157154,121.58,121.55,18.28378134]
[1766563011965,4.64157154,121.58,121.55,0.05378134]
[1766563012465,4.64157154,121.58,121.53,18.23]
[1766563013264,4.64157154,121.58,121.54,0.06224588]
[1766563024362,4.64157154,121.58,121.54,0.00224588]
[1766563024567,12.05027154,121.58,121.54,0.00224588]
[1766563024755,4.84,121.57,121.54,0.00224588]
[1766563025155,4.85,121.56,121.48,19.39]
[1766563026060,0.05853061,121.53,121.51,0.05623583]
[1766563026265,0.05853061,121.53,121.48,19.39]
[1766563027158,0.05853061,121.53,121.49,0.06251107]
[1766563028460,4.96853061,121.53,121.49,0.06251107]
[1766563037865,4.96853061,121.53,121.49,19.45251107]
[1766563039067,0.05853061,121.53,121.49,19.45251107]
[1766563039374,5.15,121.59,121.51,19.39]
[1766563040166,5.17,121.58,121.51,19.39]
[1766563040475,0.05995939,121.56,121.53,0.05564879]
[1766563047766,5.32995939,121.56,121.53,0.05564879]
[1766563048077,5.32995939,121.56,121.5,19.39]
[1766563048968,5.32995939,121.56,121.47,20.7009643]
[1766563049173,5.27,121.56,121.47,20.7009643]
[1766563050081,0.06060737,121.53,121.5,0.05818766]
[1766563050884,5.26060737,121.53,121.5,0.05818766]
[1766563051474,5.26060737,121.53,121.46,122.6954]
[1766563051777,5.26060737,121.53,121.47,18.1]
[1766563052481,5.26060737,121.53,121.49,0.06074747]
[1766563054283,6.57157167,121.53,121.49,0.06074747]
[1766563055283,5.23,121.52,121.46,97.18]
[1766563056272,0.05544079,121.5,121.48,0.05915684]
[1766563056582,5.24544079,121.5,121.43,19.41]
[1766563057588,5.24544079,121.5,121.45,0.06171103]
[1766563057781,0.05999812,121.49,121.45,0.06171103]
[1766563063500,5.27999812,121.49,121.45,0.06171103]
[1766563065096,6.59096242,121.49,121.45,0.06171103]
[1766563066799,5.27999812,121.49,121.45,0.06171103]
[1766563072495,0.05999812,121.49,121.45,19.47171103]
[1766563073696,5.38999812,121.49,121.45,19.47171103]
[1766563078306,5.38999812,121.49,121.45,0.06171103]
[1766563098318,6.70096242,121.49,121.45,0.00171103]
[1766563098522,5.54,121.48,121.45,0.00171103]
[1766563103728,4.64920283,121.48,121.45,0.00171103]
[1766563107135,4.64920283,121.48,121.42,18.49]
[1766563108136,0.05863405,121.46,121.44,0.05209768]
[1766563124643,4.93863405,121.46,121.42,18.49]
[1766563124943,4.93863405,121.46,121.4,116.77]
[1766563127043,4.93863405,121.46,121.4,19.51]
[1766563127443,4.9,121.45,121.4,19.51]
[1766563149284,12.3166,121.45,121.4,19.51]
[1766563153086,7.4172,121.44,121.4,19.51]
[1766563153386,0.05313486,121.43,121.4,19.51]
[1766563154886,0.05313486,121.43,121.4,6.9487]
[1766563155081,0.05313486,121.43,121.37,97.26]
[1766563155289,7.47103486,121.43,121.37,97.26]
[1766563155483,27.22103486,121.43,121.37,97.26]
[1766563155682,135.19163486,121.43,121.37,97.26]
[1766563156387,135.19163486,121.43,121.34,15.23384268]
[1766563156587,0.05268102,121.4,121.34,15.23384268]
[1766563156987,0.05268102,121.4,121.35,20.16]
[1766563157187,0.00268102,121.4,121.35,20.16]
[1766563158178,0.00268102,121.4,121.36,20.21]
[1766563159191,7.42238102,121.4,121.36,1.68080691]
[1766563159384,27.17238102,121.4,121.36,6.91e-06]
[1766563159891,19.75,121.39,121.29,15.23384268]
[1766563160281,0.00463665,121.35,121.29,15.23384268]
[1766563161287,0.00463665,121.35,121.31,0.05]
[1766563161592,0.00463665,121.35,121.32,20.16]
[1766563172699,0.00463665,121.35,121.31,11.44]
[1766563173289,13.42993871,121.35,121.31,0.05]
[1766563176305,1.31530206,121.33,121.29,11.39]
[1766563177005,13.42530206,121.33,121.29,11.39]
[1766563177202,0.06145965,121.32,121.29,11.39]
[1766563178207,0.06145965,121.32,121.27,10.68]
[1766563178408,0.06145965,121.32,121.24,122.9919]
[1766563178409,13.47890281,121.31,121.24,7.429]
[1766563178600,13.47890281,121.31,121.25,10.68]
[1766563181407,12.16360075,121.31,121.25,10.68]
[1766563181602,13.47890281,121.31,121.25,10.68]
[1766563183212,1.31530206,121.29,121.25,10.68]
[1766563183412,0.06084424,121.28,121.23,100.34]
[1766563183614,0.06084424,121.28,121.24,3.0]
[1766563189812,5.53084424,121.28,121.22,2.91]
[1766563194412,0.06084424,121.28,121.22,2.91]
[1766563197221,0.06084424,121.28,121.22,10.3402]
[1766563197423,0.06084424,121.28,121.23,2.91]
[1766563200127,0.00084424,121.28,121.24,2.85]
[1766563202326,0.00084424,121.28,121.25,2.90686009]
[1766563205228,3.45084424,121.28,121.23,2.85]
[1766563206031,3.45084424,121.28,121.21,2.91]
[1766563206237,3.45,121.28,121.21,2.91]
[1766563206425,0.06146555,121.26,121.21,2.91]
[1766563207628,3.51146555,121.26,121.21,2.91]
[1766563207830,3.51146555,121.26,121.19,2.91]
[1766563208130,3.50351056,121.24,121.19,2.91]
[1766563209131,3.50351056,121.24,121.18,97.42]
[1766563209940,3.50351056,121.24,121.17,2.91]
[1766563211236,3.45,121.23,121.17,2.91]
[1766563211433,0.06103057,121.21,121.17,2.91]
[1766563212239,3.51103057,121.21,121.15,2.91]
[1766563214747,0.06103057,121.21,121.15,2.91]
[1766563215146,0.00103057,121.21,121.15,2.91]
[1766563216146,0.00103057,121.21,121.17,2.90670311]
[1766563218143,0.00103057,121.21,121.17,0.05670311]
[1766563218345,3.45103057,121.21,121.17,0.05670311]
[1766563219443,0.00103057,121.21,121.17,0.05670311]
[1766563219642,0.00103057,121.21,121.17,2.90670311]
[1766563220850,3.45,121.26,121.18,2.85]
[1766563221045,3.45,121.26,121.19,2.85]
[1766563221243,3.45,121.26,121.2,2.85]
[1766563221449,3.45,121.28,121.21,2.85]
[1766563221946,0.06130165,121.26,121.23,0.05859412]
[1766563227462,3.51130165,121.26,121.19,2.91]
[1766563229457,0.06130165,121.26,121.2,2.91]
[1766563235364,0.00130165,121.26,121.2,133.84132874]
[1766563235655,0.00130165,121.26,121.21,2.85]
[1766563235962,0.00130165,121.26,121.23,2.85]
[1766563236458,3.29,121.29,121.23,2.90770315]
[1766563237665,0.05243533,121.27,121.23,2.90770315]
[1766563237967,3.29,121.37,121.26,2.85]
[1766563238171,3.29,121.37,121.28,2.85]
[1766563239065,0.05291184,121.34,121.31,0.05579021]
[1766563242866,3.46291184,121.34,121.31,0.05579021]
[1766563243066,3.46291184,121.34,121.28,2.85]
[1766563244159,3.46291184,121.34,121.3,0.05471546]
[1766563246266,3.46291184,121.34,121.3,0.00471546]
[1766563251770,3.41,121.33,121.25,2.9]
[1766563252868,0.05598055,121.3,121.25,2.9]
[1766563255877,10.8335,121.34,121.25,2.9]
[1766563256068,3.41,121.34,121.26,2.85]
[1766563256974,0.05645642,121.31,121.29,0.05367158]
[1766563261375,3.39,121.35,121.29,2.89367158]
[1766563262078,97.44,121.39,121.29,2.89367158]
[1766563262079,3.39,121.38,121.29,2.89367158]
[1766563262275,3.39,121.38,121.29,2.84]
[1766563262474,0.05490346,121.35,121.32,2.84321214]
[1766563262778,0.00490346,121.35,121.32,2.84321214]
[1766563263079,3.39,121.4,121.32,2.84321214]
[1766563263378,3.39,121.4,121.32,2.78]
[1766563264177,0.06014215,121.37,121.35,0.05579272]
[1766563264574,3.45014215,121.37,121.31,2.73]
[1766563265474,3.45014215,121.37,121.33,0.05892608]
[1766563267285,0.06014215,121.37,121.33,0.05892608]
[1766563267481,0.06014215,121.37,121.33,2.78892608]
[1766563267780,3.45014215,121.37,121.33,0.05892608]
[1766563270286,0.06014215,121.37,121.33,0.05892608]
[1766563272483,0.06014215,121.37,121.33,2.78892608]
[1766563272692,115.3395,121.48,121.36,3.55]
[1766563272885,115.3395,121.48,121.36,115.449]
[1766563273085,212.6995,121.48,121.37,3.55]
[1766563273390,104.7747,121.48,121.37,3.55]
[1766563273585,104.7747,121.48,121.41,0.05426147]
[1766563273886,0.05513629,121.44,121.41,0.05426147]
[1766563276489,3.44513629,121.44,121.41,0.05426147]
[1766563276788,3.44513629,121.44,121.41,0.00426147]
[1766563278485,0.05513629,121.44,121.41,0.00426147]
[1766563286593,3.44513629,121.44,121.41,0.00426147]
[1766563290697,3.44513629,121.44,121.37,3.55]
[1766563291599,3.33,121.43,121.37,3.55]
[1766563291800,3.33,121.43,121.34,97.3]
[1766563291801,0.05801185,121.41,121.39,0.053346]
[1766563292798,0.05801185,121.41,121.36,3.25]
[1766563293007,0.05801185,121.41,121.33,104.7233]
[1766563293008,3.38801185,121.41,121.34,3.25]
[1766563293306,3.33,121.41,121.34,3.25]
[1766563294004,0.05525548,121.39,121.36,0.06210952]
[1766563294707,3.38525548,121.39,121.36,0.06210952]
[1766563297907,0.05525548,121.39,121.36,0.06210952]
[1766563298110,3.34525548,121.39,121.36,0.00210952]
[1766563299908,0.05525548,121.39,121.36,0.00210952]
[1766563305815,0.05525548,121.39,121.36,3.30210952]
[1766563306208,3.29,121.42,121.36,3.30210952]
[1766563307209,0.06051337,121.4,121.36,3.30210952]
[1766563309819,0.00051337,121.4,121.36,3.30210952]
[1766563310319,7.4179,121.43,121.36,3.30210952]
[1766563311014,3.29,121.44,121.36,3.30210952]
[1766563311220,3.29,121.44,121.36,3.3]
[1766563311420,0.06030537,121.41,121.39,0.06114061]
[1766563315224,0.00030537,121.41,121.39,0.06114061]
[1766563315428,0.00030537,121.41,121.39,3.36114061]
[1766563316921,0.00030537,121.41,121.39,0.06114061]
[1766563317523,3.29030537,121.41,121.39,0.00114061]
[1766563322319,0.00030537,121.41,121.39,3.47114061]
[1766563322526,10.7267,121.45,121.39,3.47114061]
[1766563323226,0.42727459,121.45,121.39,3.47114061]
[1766563323426,0.06172827,121.43,121.39,3.47114061]
[1766563328338,3.37172827,121.43,121.39,0.00114061]
[1766563351153,0.06172827,121.43,121.39,0.00114061]
[1766563353444,0.06172827,121.43,121.39,3.43114061]
[1766563355653,3.37,121.45,121.4,3.43]
[1766563355849,3.37,121.45,121.4,13.6829225]
[1766563356045,3.37,121.45,121.4,3.43]
[1766563356759,0.05377384,121.44,121.4,3.43]
[1766563357051,3.37,121.47,121.42,13.6829225]
[1766563357252,3.37,121.49,121.42,3.43]
[1766563357452,3.37,121.47,121.4,3.43]
[1766563357657,3.37,121.47,121.35,115.4585]
[1766563357658,3.37,121.44,121.36,10.2529225]
[1766563357860,3.37,121.41,121.32,13.6829225]
[1766563358159,3.37,121.37,121.3,3.43]
[1766563358657,3.37,121.37,121.31,3.43]
[1766563358859,3.37,121.42,121.33,3.43]
[1766563359054,0.05326127,121.39,121.36,0.05406834]
[1766563364259,0.00326127,121.39,121.36,3.31406834]
[1766563365764,3.35,121.43,121.36,3.31406834]
[1766563366358,3.35,121.46,121.36,3.31406834]
[1766563366560,3.35,121.46,121.37,3.26]
[1766563366765,0.05537232,121.43,121.4,0.05623703]
[1766563367066,3.35,121.46,121.4,0.05623703]
[1766563367956,0.05207203,121.44,121.4,0.05623703]
[1766563374963,3.40207203,121.44,121.4,0.05623703]
[1766563380169,3.40207203,121.44,121.36,3.26]
[1766563380373,3.35,121.44,121.37,100.56]
[1766563381276,0.05826341,121.42,121.39,0.05364616]
[1766563398787,0.05826341,121.42,121.39,3.46364616]
[1766563398988,3.26,121.45,121.39,0.05364616]
[1766563399193,3.26,121.44,121.39,0.05364616]
[1766563399397,3.26,121.44,121.35,3.41]
[1766563399595,3.26,121.42,121.35,3.41]
[1766563399990,3.26,121.42,121.35,100.71]
[1766563400193,3.26,121.42,121.36,3.41]
[1766563400593,0.05790916,121.4,121.38,0.05319937]
[1766563400790,10.6772,121.44,121.38,3.46319937]
[1766563400991,3.26,121.43,121.38,3.46319937]
[1766563401697,0.05446131,121.42,121.38,3.46319937]
[1766563403998,0.00446131,121.42,121.38,3.46319937]
[1766563407101,0.00446131,121.42,121.4,3.41]
[1766563409296,0.00446131,121.42,121.41,97.3]
[1766563416209,0.00446131,121.42,121.41,100.69]
[1766563417107,3.22,121.47,121.42,3.39]
[1766563418012,0.05954551,121.46,121.43,0.06004776]
[1766563418308,0.05954551,121.46,121.44,97.3]
[1766563421304,0.05954551,121.46,121.44,84.5113]
[1766563421503,3.27954551,121.46,121.43,97.2862456]
[1766563422214,3.27954551,121.46,121.4,3.39]
[1766563422215,3.27954551,121.46,121.42,97.28]
[1766563423111,3.27954551,121.46,121.43,0.05624899]
[1766563424817,0.05954551,121.46,121.43,0.05624899]
[1766563438227,0.05954551,121.46,121.43,3.44624899]
[1766563447236,2.02954551,121.46,121.43,0.05624899]
[1766563451641,0.05954551,121.46,121.43,3.35624899]
[1766563451826,1.97,121.48,121.43,3.35624899]
[1766563453036,0.05753303,121.47,121.43,3.35624899]
[1766563464248,7.4143,121.49,121.43,3.35624899]
[1766563465055,9.5043,121.49,121.43,3.35624899]
[1766563465356,0.05731255,121.47,121.43,3.35624899]
[1766563465858,9.5043,121.49,121.43,3.35624899]
[1766563465859,7.4143,121.49,121.43,3.35624899]
[1766563467055,0.05254914,121.47,121.43,3.35624899]
[1766563467253,0.00254914,121.47,121.43,3.35624899]
[1766563468155,2.20254914,121.47,121.43,3.35624899]
[1766563468752,2.14,121.44,121.39,3.3]
[1766563468955,2.14,121.43,121.37,3.3]
[1766563469153,2.14,121.45,121.37,3.3]
[1766563469559,9.5565,121.45,121.37,3.3]
[1766563469860,0.05248111,121.42,121.4,0.06271171]
[1766563472472,2.19248111,121.42,121.37,97.26]
[1766563472766,2.14,121.42,121.37,97.26]
[1766563473272,0.06151178,121.41,121.38,0.0537113]
[1766563473671,0.06151178,121.41,121.38,1.2264713]
[1766563475771,0.06151178,121.41,121.38,4.4564713]
[1766563478970,0.06151178,121.41,121.38,1.2264713]
[1766563479166,115.3506,121.47,121.38,1.2264713]
[1766563479167,2.14,121.46,121.39,3.23]
[1766563480168,7.4154,121.47,121.41,3.2856191]
[1766563480370,2.19,121.5,121.41,3.2856191]
[1766563480570,216.21170135,121.49,121.41,3.23]
[1766563481170,0.05701623,121.46,121.44,0.05552525]
[1766563482072,0.05701623,121.46,121.4,3.23]
[1766563482273,2.19,121.47,121.4,3.23]
[1766563482476,9.6054,121.47,121.4,3.23]
[1766563482875,0.06189187,121.45,121.42,3.2903856]
[1766563483475,0.00189187,121.45,121.42,3.2903856]
[1766563487383,106.8142,121.49,121.42,3.2903856]
[1766563488183,0.06344186,121.47,121.42,3.2903856]
[1766563491577,2.26344186,121.47,121.42,3.2903856]
[1766563496894,0.06344186,121.47,121.42,3.2903856]
[1766563505092,2.26344186,121.47,121.42,3.2903856]
[1766563505292,9.67884186,121.47,121.42,3.2903856]
[1766563506798,3.41,121.44,121.38,1.17276]
[1766563507795,0.05698456,121.42,121.4,0.05447224]
[1766563509791,3.46698456,121.42,121.38,6e-05]
[1766563510093,3.41,121.4,121.34,3.44]
[1766563510596,3.41,121.39,121.32,3.44]
[1766563510796,0.05380817,121.37,121.34,0.05752706]
[1766563518904,3.41,121.35,121.29,3.44]
[1766563519804,3.41,121.35,121.31,0.06269056]
[1766563519805,0.0610612,121.33,121.31,0.06269056]
[1766563525204,0.0610612,121.33,121.27,3.44]
[1766563526313,0.0610612,121.33,121.29,0.05464874]
[1766563532021,0.0610612,121.33,121.29,3.55464874]
[1766563538434,0.0010612,121.33,121.29,3.55464874]
[1766563539833,104.8009,121.38,121.29,3.55464874]
[1766563540040,104.8009,121.38,121.29,3.5]
[1766563540226,3.48,121.39,121.3,3.55]
[1766563540426,3.48,121.41,121.32,3.55]
[1766563541029,0.06183334,121.38,121.35,0.06285242]
[1766563548927,3.54183334,121.38,121.35,0.06285242]
[1766563570954,0.06183334,121.38,121.35,3.59285242]
[1766563571155,0.00183334,121.38,121.35,3.59285242]
[1766563576256,0.00183334,121.38,121.35,0.06285242]
[1766563579959,0.00183334,121.38,121.35,3.59285242]
[1766563582469,10.9579,121.43,121.35,3.59285242]
[1766563582756,10.9579,121.43,121.35,3.53]
[1766563583052,10.9565,121.45,121.35,3.53]